[Event "FIDE WY-U16 Olympiad 2022"]
[Site "Nakhchivan"]
[Date "2022.10.05"]
[Round "4.8"]
[White "Kayis, Gulcan Sena"]
[Black "Akhilbay, Imangali"]
[Result "0-1"]
[ECO "B22"]
[WhiteElo "1702"]
[BlackElo "2098"]
[Annotator "TA"]
[PlyCount "74"]
[EventDate "2022.10.02"]
[EventType "team-tourn"]
[EventCountry "AZE"]
[SourceTitle "playchess.com"]
[Source "ChessBase"]
[SourceQuality "1"]
[WhiteTeam "Turkey"]
[BlackTeam "Kazakhstan"]
[WhiteTeamCountry "TUR"]
[BlackTeamCountry "KAZ"]
[TimeControl "40/5400+30:1800+30"]

{[%evp 14,74,0,0,0,11,9,3,23,11,36,42,46,-10,0,6,4,-18,-17,-31,-14,-25,-30,-51,-52,-205,-203,-208,-155,-233,-225,-214,-157,-146,-139,-186,-169,-202,-187,-238,-249,-302,-309,-323,-229,-327,-250,-250,-254,-248,-202,-494,-488,-476,-475,-693,-670,-883,-875,-1271,-1127,-1299,-1272]} 1. e4 {[%emt 0:00:03][%cal Be2e4,Be4e5][%mdl 32]} c5 {[%emt 0:00:21]} 2. c3 {[%emt 0:00:12]} Nf6 {[%emt 0:00:30]} 3. e5 {[%emt 0:00:17]} Nd5 {[%emt 0:00:05]} 4. Nf3 {[%emt 0:00:12]} Nc6 {[%emt 0:00:07]} 5. d4 {[%emt 0:00:11]} cxd4 {[%emt 0:00:04]} 6. cxd4 {[%emt 0:00:12]} d6 {[%emt 0:00:53]} 7. Bc4 {[%emt 0:00:34]} dxe5 {[%emt 0:01:21]} 8. dxe5 {[%emt 0:00:17]} Be6 {[%emt 0:00:41][%cal Od5f4] B22: Sicilian: 2 c3.} 9. O-O {[%emt 0:01:54]} g6 {[%emt 0:00:53]} 10. Ng5 {[%emt 0:03:54]} Bg7 {[%emt 0:02:40] The position is equal.} 11. f4 {[%emt 0:03:43]} O-O {[%emt 0:09:11][%cal Od5f4] And now ...Nxf4! would win.} 12. Nxe6 {[%emt 0:19:24]} fxe6 {[%emt 0:00:02]} 13. Qg4 {[%emt 0:00:10]} (13. Nc3) ({White should try} 13. Nc3 $14) 13... Qb6+ {[%emt 0:02:41]} 14. Kh1 {[%emt 0:00:52] [#]} Nd4 $146 {[%emt 0:00:06] [#] White must now prevent ...Nc2.} ({Predecessor:} 14... Kh8 15. Qxe6 Ne3 16. Bxe3 Qxe3 17. Qg4 Nxe5 18. fxe5 Rxf1+ 19. Bxf1 Qc1 20. Qc4 Qxb2 21. Qc3 Bxe5 {0-1 (21) Da Silva Junior,S (2011)-Delgado Ramirez,N (2623) Curitiba 2019}) 15. Bxd5 {[%emt 0:09:53]} (15. Nc3) 15... exd5 {[%emt 0:01:12]} 16. Nc3 {[%emt 0:00:45] Be3 is the strong threat.} Qa6 {[%emt 0:10:45][%cal Ra6f1]} 17. Qd1 {[%emt 0:09:27]} Rad8 {[%emt 0:10:44][%cal Og7e5]} 18. Re1 {[%emt 0:07:05]} Ne6 $40 {[%emt 0:07:32][%cal Bd4e6,Be6c5,Bc5d3][%mdl 160] White needs to defend precisely.} 19. Qb3 $2 {[%emt 0:13:03] [#] This costs White the game.} (19. Nxd5 Qa5 20. Nxe7+ Kf7 $17) (19. Qf3 $15) 19... Nc5 $19 {[%emt 0:06:29]} ({Resist} 19... Nxf4 20. Bxf4 Rxf4 21. Nxd5 $18) 20. Qb5 {[%emt 0:00:53]} Nd3 {[%emt 0:05:08]} 21. Re2 {[%emt 0:04:30]} (21. Qxa6 $17 bxa6 22. Rf1) 21... Qxb5 {[%emt 0:15:55]} ({Don't blunder} 21... Nxf4 $2 22. Bxf4 Rxf4 23. Qxa6 bxa6 24. Rd1) 22. Nxb5 {[%emt 0:00:09]} Bxe5 {[%emt 0:01:10]} 23. g3 {[%emt 0:02:07]} Bf6 {[%emt 0:00:28] Black is more active.} 24. Rd2 {[%emt 0:01:54]} (24. Be3 $17) 24... Nc5 {[%emt 0:03:01]} 25. Rb1 {[%emt 0:02:16]} a6 {[%emt 0:02:28]} 26. Na3 {[%emt 0:00:50]} (26. Nd4 {was called for.}) 26... d4 {[%emt 0:01:12][%cal Bd5d4,Bd4d3][%mdl 32]} ({Avoid the trap} 26... Ne4 $2 27. Re2) 27. Rc2 {[%emt 0:01:48]} Rc8 {[%emt 0:03:16]} 28. Bd2 {[%emt 0:01:35]} Ne4 {[%emt 0:00:54]} 29. Bb4 {[%emt 0:00:32]} (29. Rxc8 $142 Rxc8 30. Rc1) 29... Rxc2 {[%emt 0:04:45]} 30. Nxc2 {[%emt 0:00:09]} d3 {[%emt 0:02:02]} 31. Ne3 {[%emt 0:00:35]} Bd4 {[%emt 0:00:41]} 32. Nd5 {[%emt 0:03:19]} (32. Nf1) 32... Rd8 {[%emt 0:01:19] Black is clearly winning.} 33. Nxe7+ {[%emt 0:00:22]} Kf7 {[%emt 0:00:03]} 34. f5 {[%emt 0:00:34]} (34. Ba5 $142 Rd7 35. Nc8) 34... Bc5 {[%emt 0:01:17]} 35. Bxc5 {[%emt 0:00:41]} Nxc5 {[%emt 0:00:05]} 36. b4 {[%emt 0:00:16]} d2 {[%emt 0:00:27]} 37. Rd1 {[%emt 0:00:03]} Ne4 {[%emt 0:00:04] Weighted Error Value: White=0.76/Black=0.19 (very precise)} 0-1

[Event "FIDE WY-U16 Olympiad 2022"]
[Site "Nakhchivan"]
[Date "2022.10.05"]
[Round "4.8"]
[White "Nasibova, Narmin"]
[Black "Sustov, Savva"]
[Result "0-1"]
[ECO "B22"]
[WhiteElo "1504"]
[BlackElo "1957"]
[Annotator "TA"]
[PlyCount "134"]
[EventDate "2022.10.02"]
[EventType "team-tourn"]
[EventCountry "AZE"]
[SourceTitle "playchess.com"]
[Source "ChessBase"]
[SourceQuality "1"]
[WhiteTeam "Azerbaijan"]
[BlackTeam "Moldova"]
[WhiteTeamCountry "AZE"]
[BlackTeamCountry "MDA"]
[TimeControl "40/5400+30:1800+30"]

{[%evp 17,134,16,14,0,1,-10,0,-31,-35,-16,-31,-33,-21,-27,-36,-34,-29,-29,-31,-47,-10,-4,-10,-6,0,0,0,-24,-15,-53,-56,-42,-45,-140,-79,-78,-78,-80,-62,-62,-62,-62,-62,-62,-6,-62,-62,-87,-86,-209,-195,-254,-226,-217,-213,-241,-261,-266,-250,-334,-318,-291,-262,-488,-485,-451,-449,-553,-483,-572,-262,-497,-468,-1616,-1454,-1611,-1491,-1321,-1072,-1381,-1291,-12835,-12836,-12836,-12837,-12837,-12838,-12838,-12838,-12839,-12839,-12841,-12841,-12841,-12841,-12841,-12840,-12844,-12844,-12845,-12844,-12845,-12846,-12847,-12846,-12846,-12847,-12847,-12847,-12849,-12849,-12850,-12849,-12850,-12850,-12850,-12850,-12850,-12849]} 1. e4 {[%emt 0:00:14]} c5 {[%emt 0:00:04]} 2. c3 {[%emt 0:00:21]} Nc6 {[%emt 0:03:01]} 3. d4 {[%emt 0:00:55]} cxd4 {[%emt 0:00:05]} 4. cxd4 {[%emt 0:00:14]} d5 {[%emt 0:02:11]} 5. exd5 {[%emt 0:00:33]} Qxd5 {[%emt 0:00:13]} 6. Nf3 {[%emt 0:00:30]} e6 {[%emt 0:05:31]} 7. Nc3 {[%emt 0:02:53]} Qd8 {[%emt 0:04:05]} 8. Bc4 {[%emt 0:06:28]} Nf6 {[%emt 0:03:51]} 9. O-O {[%emt 0:03:37]} Be7 {[%emt 0:02:59]} 10. h3 {[%emt 0:07:23] D26: Queen's Gambit Accepted: 4 e3 e6 5 Bxc5 c5 sidelines.} O-O {[%emt 0:02:41]} 11. Bf4 {[%emt 0:05:38]} a6 {[%emt 0:05:01] [#]} 12. Rc1 $146 {[%emt 0:10:33] The position is equal.} ({Predecessor:} 12. a3 b5 13. Ba2 Bb7 14. Qd3 Rc8 15. Rad1 g6 16. d5 exd5 17. Nxd5 Nxd5 18. Bxd5 Bf6 19. Bh6 {½-½ (31) Akshat,K (2393)-Ilincic,Z (2412) Budapest 2019}) 12... b5 {[%emt 0:04:40]} 13. Bb3 {[%emt 0:16:57]} Na5 {[%emt 0:07:26]} 14. Ne5 {[%emt 0:08:14]} Bb7 {[%emt 0:05:15] Prevents d5.} 15. Bc2 {[%emt 0:05:11]} Rc8 {[%emt 0:03:17]} 16. Qd2 {[%emt 0:05:05]} Nc4 {[%emt 0:02:14]} 17. Nxc4 {[%emt 0:00:17]} Rxc4 {[%emt 0:00:10]} 18. Be5 {[%emt 0:01:34]} Bd6 {[%emt 0:06:53] Strongly threatening ...Bxe5.} (18... Nd7 $5 {[%cal Rd7e5]} 19. Bf4 (19. Qd3 g6 $17) 19... Nb6 $15) 19. Rfd1 {[%emt 0:03:37]} Qe7 {[%emt 0:08:08]} 20. Qd3 {[%emt 0:04:24] Black must now prevent Bxf6.} g6 {[%emt 0:01:35]} 21. Bb3 {[%emt 0:03:22]} Rcc8 {[%emt 0:02:43]} 22. Bxd6 {[%emt 0:10:53]} Qxd6 {[%emt 0:00:12]} 23. d5 {[%emt 0:02:02]} Rcd8 {[%emt 0:03:36]} 24. Qd4 {[%emt 0:00:35]} exd5 {[%emt 0:01:25]} (24... Nxd5 $2 25. Ne4 Qf4 26. Bxd5 $18) 25. Nxd5 {[%emt 0:00:43]} Bxd5 {[%emt 0:02:54]} ({Better is} 25... Nxd5 26. Rc5 Rfe8 $1 27. Bxd5 Bxd5 28. Rxd5 Qxd5 29. Qxd5 Rxd5 30. Rxd5 Re1+ 31. Kh2 Re2 32. Rd8+ Kg7) 26. Bxd5 $17 {[%emt 0:00:28]} ({Not} 26. Rc5 $2 Bxb3 27. Qxd6 Rxd6 28. Rxd6 Ne4 29. Rxa6 Nxc5 $19) 26... Nxd5 {[%emt 0:01:29]} 27. Rc5 {[%emt 0:00:09][%cal Rc5d5] [#]} Rfe8 $1 {[%emt 0:01:13] Threatens to win with ...Re5.} 28. Rxd5 {[%emt 0:01:03]} Qxd5 {[%emt 0:00:12]} 29. Qxd5 {[%emt 0:00:08]} Rxd5 {[%emt 0:00:03]} 30. Rxd5 $15 {[%emt 0:00:07][%mdl 4096] Endgame KR-KR} Re1+ $1 {[%emt 0:00:07]} 31. Kh2 {[%emt 0:00:05]} Re2 $1 {[%emt 0:00:04][%csl LRb2,LRf2]} 32. Rd6 {[%emt 0:01:28]} a5 {[%emt 0:00:15]} 33. b3 {[%emt 0:00:46] Loses the game.} (33. Rb6 $17) 33... Rxa2 $19 {[%emt 0:00:28]} ({And not} 33... Rxf2 34. Rd5 $17) 34. Rb6 {[%emt 0:00:28] [#]} (34. Rd5 {was worth a try.}) 34... b4 $1 {[%emt 0:01:03]} (34... Rxf2 35. Rxb5 Ra2 36. Kg3 $17) 35. Kg1 {[%emt 0:00:31]} Kf8 {[%emt 0:01:20] aiming for ...Ke7.} 36. Rb7 {[%emt 0:00:14]} Kg7 {[%emt 0:01:31]} 37. Rb6 {[%emt 0:00:26]} Kh6 {[%emt 0:00:23]} 38. g3 {[%emt 0:00:47]} Kg5 {[%emt 0:00:39]} 39. Rb5+ {[%emt 0:00:31]} f5 {[%emt 0:02:00]} 40. Rb6 $2 {[%emt 0:00:33]} (40. h4+ Kf6 41. Kf1) 40... Ra3 {[%emt 0:00:41]} 41. Rb5 {[%emt 0:30:30]} Kf6 {[%emt 0:30:11]} 42. h4 {[%emt 0:00:00]} Ke6 {[%emt 0:00:00]} ({Worse is} 42... Rxb3 43. Rxa5 Rc3 44. Rb5 $17) 43. h5 {[%emt 0:00:00]} Kf6 {[%emt 0:00:00]} (43... Kd6 $142 44. h6 Kc6) 44. Rb6+ $2 {[%emt 0:00:00]} (44. Kg2 {only move.}) 44... Kg5 {[%emt 0:00:00] Black is clearly winning.} 45. hxg6 {[%emt 0:00:00]} (45. Rb5 $142 Kxh5 46. Kg2) 45... hxg6 {[%emt 0:00:00][%cal Bh7g6,Bg6g5,Bg5f4,Bf4f3][%mdl 32]} 46. Rb5 {[%emt 0:00:00]} Kg4 {[%emt 0:00:00]} 47. Kg2 {[%emt 0:00:00]} Ra2 {[%emt 0:00:00]} 48. Rb6 {[%emt 0:00:00]} g5 {[%emt 0:00:00]} 49. Rb5 {[%emt 0:00:00]} f4 {[%emt 0:00:00]} 50. gxf4 {[%emt 0:00:00]} gxf4 {[%emt 0:00:00]} 51. Rb8 {[%emt 0:00:00]} f3+ {[%emt 0:00:00]} 52. Kg1 {[%emt 0:00:00]} Ra3 {[%emt 0:00:00]} 53. Rb5 {[%emt 0:00:00]} Kf4 {[%emt 0:00:00]} 54. Kh2 {[%emt 0:01:43]} Ke4 {[%emt 0:00:00]} 55. Rh5 {[%emt 0:00:25]} Kd4 {[%emt 0:00:00]} 56. Kg3 {[%emt 0:00:23]} Kc3 {[%emt 0:00:00]} 57. Kxf3 {[%emt 0:00:14]} Kxb3 {[%emt 0:00:00]} 58. Ke4 {[%emt 0:01:46]} a4 {[%emt 0:00:00]} 59. f4 {[%emt 0:02:18]} Ra1 {[%emt 0:00:00]} 60. f5 {[%emt 0:00:15]} Re1+ {[%emt 0:00:00]} 61. Kd4 {[%emt 0:00:44]} Rf1 {[%emt 0:00:00]} 62. Rh3+ {[%emt 0:01:02]} Ka2 {[%emt 0:00:00]} 63. Kc5 {[%emt 0:00:31]} b3 {[%emt 0:00:00][%cal Bb4b3,Bb3b2][%mdl 32]} 64. Kb5 {[%emt 0:02:09]} a3 {[%emt 0:00:00]} 65. Kc4 {[%emt 0:00:26]} Rf4+ {[%emt 0:00:00]} 66. Kc3 {[%emt 0:00:12]} b2 {[%emt 0:00:00]} 67. Rh2 {[%emt 0:00:33]} Ka1 {[%emt 0:00:00] Weighted Error Value: White=0.61/Black=0.10 (very precise)} 0-1

[Event "FIDE WY-U16 Olympiad 2022"]
[Site "Nakhchivan"]
[Date "2022.10.05"]
[Round "4.9"]
[White "Madaminov, Mukhiddin"]
[Black "Nemsadze, Daviti"]
[Result "1/2-1/2"]
[ECO "A35"]
[WhiteElo "2441"]
[BlackElo "2012"]
[Annotator "TA"]
[PlyCount "95"]
[EventDate "2022.10.02"]
[EventType "team-tourn"]
[EventCountry "AZE"]
[SourceTitle "playchess.com"]
[Source "ChessBase"]
[SourceQuality "1"]
[WhiteTeam "Uzbekistan"]
[BlackTeam "Georgia"]
[WhiteTeamCountry "UZB"]
[BlackTeamCountry "GEO"]
[TimeControl "40/5400+30:1800+30"]

{[%evp 15,95,0,8,8,6,-10,0,-13,-19,-20,-19,-78,-69,-60,-45,-38,-10,-89,0,-8,0,0,0,-21,-6,-94,-66,-85,-57,-62,-44,-43,-43,-48,-28,-101,-102,-105,-46,-46,-45,-56,-52,-47,-35,-48,-35,-36,-21,-21,-21,-23,0,0,0,0,0,0,0,0,0,0,0,0,0,0,0,0,0,0,0,0,0,0,0,0,0,0,0,0,0,0]} 1. Nf3 {[%emt 0:00:45]} Nf6 {[%emt 0:00:15]} 2. c4 {[%emt 0:00:02]} c5 {[%emt 0:04:42]} 3. Nc3 {[%emt 0:02:33]} Nc6 {[%emt 0:08:27]} 4. e3 {[%emt 0:05:20]} d5 {[%emt 0:09:15]} 5. d4 {[%emt 0:02:33]} e6 {[%emt 0:00:47]} 6. a3 {[%emt 0:00:17]} cxd4 {[%emt 0:02:12]} 7. exd4 {[%emt 0:01:26]} Be7 {[%emt 0:00:53]} 8. cxd5 {[%emt 0:04:45]} exd5 {[%emt 0:03:11] was the old line (8...Nxd5).} 9. h3 {[%emt 0:00:18] D40: Queen's Gambit Declined: Semi-Tarrasch with 5 e3.} Bf5 {[%emt 0:00:46]} 10. Bb5 {[%emt 0:07:41]} O-O {[%emt 0:01:06] [#]} 11. Bxc6 $146 {[%emt 0:00:35]} ({Predecessor:} 11. O-O Rc8 12. Re1 a6 13. Bd3 Bxd3 14. Qxd3 Re8 15. Bg5 Qd6 16. Re5 h6 17. Bxf6 Bxf6 18. Rxd5 {1-0 (46) Kislinsky,A (2364)-Tulchynskyi,F (2146) Kiev 2022}) 11... bxc6 {[%emt 0:00:01]} 12. O-O {[%emt 0:00:14]} Ne4 {[%emt 0:02:10]} 13. Na4 {[%emt 0:02:16]} (13. Bf4 $11) 13... Bd6 $1 $17 {[%emt 0:00:54]} 14. Be3 {[%emt 0:05:40]} Re8 {[%emt 0:06:24]} 15. Rc1 {[%emt 0:03:50]} Qd7 {[%emt 0:00:24][%cal Of5h3] next ...Bxh3! is good for Black.} 16. Re1 {[%emt 0:15:03] [#]} (16. Ne5 $1 $11 Qb7 17. Bf4) 16... Rac8 {[%emt 0:03:57]} (16... Bxh3 $1 $17 {And now ...Qg4 would win.} 17. Ne5 Bxe5 18. dxe5 Rxe5) 17. Ne5 $11 {[%emt 0:11:37] Prevents Qg4.} Bxe5 {[%emt 0:12:30]} 18. dxe5 {[%emt 0:00:05]} Rxe5 {[%emt 0:11:14][%cal Of5h3]} 19. Bf4 {[%emt 0:02:40]} Re7 $36 {[%emt 0:03:07][%mdl 2048] Black fights for an advantage.} 20. Qd4 {[%emt 0:00:25]} (20. f3 $11 {remains equal.} Nd6 21. Nc5) 20... c5 $1 $17 {[%emt 0:02:32]} 21. Qd1 {[%emt 0:00:45]} c4 {[%emt 0:01:17]} 22. f3 {[%emt 0:04:38]} Nf6 {[%emt 0:01:18]} 23. Rxe7 {[%emt 0:00:22]} Qxe7 {[%emt 0:00:04]} 24. Qd4 {[%emt 0:00:07]} Be6 {[%emt 0:09:51]} 25. Be5 {[%emt 0:00:59]} (25. Nc3 $11) 25... Nd7 {[%emt 0:00:28]} 26. Bf4 {[%emt 0:10:12][%cal Be5f4,Bf4e3,Be3d4][%mdl 32]} Nc5 {[%emt 0:00:19]} ({Better is} 26... Nb8 $17 {aiming for ...Nc6.} 27. Bxb8 (27. Nc3 $2 Nc6 $17) 27... Rxb8) 27. Nxc5 $15 {[%emt 0:00:09]} Qxc5 {[%emt 0:00:03]} 28. Be3 {[%emt 0:01:05]} Qxd4 {[%emt 0:00:05]} 29. Bxd4 {[%emt 0:00:03][%mdl 4096] Endgame KRB-KRB} a5 {[%emt 0:00:12]} 30. Kf2 {[%emt 0:00:08]} a4 {[%emt 0:00:03]} 31. g4 {[%emt 0:00:15]} f5 {[%emt 0:01:28]} 32. Re1 {[%emt 0:00:15]} Kf7 {[%emt 0:00:05]} 33. Kg3 {[%emt 0:01:27]} g6 {[%emt 0:02:14]} 34. Kf4 {[%emt 0:06:58] The position is equal.} h6 {[%emt 0:00:12]} 35. g5 {[%emt 0:01:11]} h5 {[%emt 0:02:53]} 36. h4 {[%emt 0:01:00]} Re8 {[%emt 0:00:03]} 37. Re5 {[%emt 0:01:49]} Rb8 {[%emt 0:01:10]} 38. Ke3 {[%emt 0:00:48]} Rb3+ {[%emt 0:00:09]} 39. Bc3 {[%emt 0:00:08]} Rb8 {[%emt 0:00:03]} 40. f4 {[%emt 0:00:19]} Rd8 {[%emt 0:00:21]} 41. Kd4 {[%emt 0:30:17]} Rc8 {[%emt 0:30:02]} 42. Re3 {[%emt 0:00:49]} Rc6 {[%emt 0:01:15]} 43. Bb4 {[%emt 0:00:34]} Rc8 {[%emt 0:00:09]} 44. Bd6 {[%emt 0:02:37]} Rc6 {[%emt 0:00:04]} 45. Bc5 {[%emt 0:00:14]} Rc8 {[%emt 0:00:05]} 46. Bb4 {[%emt 0:00:04]} Rc7 {[%emt 0:00:18]} 47. Bc3 {[%emt 0:00:00]} Rc8 {[%emt 0:00:00]} 48. Bb4 {[%emt 0:00:00] Weighted Error Value: White=0.13 (very precise) /Black=0.12 (very precise)} 1/2-1/2

[Event "FIDE WY-U16 Olympiad 2022"]
[Site "Nakhchivan"]
[Date "2022.10.05"]
[Round "4.9"]
[White "Seyid, Huseyn"]
[Black "Wiratunga, Jenith"]
[Result "1-0"]
[ECO "E53"]
[WhiteElo "2125"]
[BlackElo "1824"]
[Annotator "TA"]
[PlyCount "141"]
[EventDate "2022.10.02"]
[EventType "team-tourn"]
[EventCountry "AZE"]
[SourceTitle "playchess.com"]
[Source "ChessBase"]
[SourceQuality "1"]
[WhiteTeam "Azerbaijan"]
[BlackTeam "Sri Lanka"]
[WhiteTeamCountry "AZE"]
[BlackTeamCountry "SRI"]
[TimeControl "40/5400+30:1800+30"]

{[%evp 24,141,15,12,55,53,110,103,245,24,67,60,44,0,0,-10,0,0,0,0,0,0,35,8,0,10,10,-11,0,-84,0,-8,158,185,158,157,181,185,179,176,193,166,154,147,196,202,237,237,246,190,259,218,302,296,337,247,257,235,280,277,243,211,221,219,203,207,400,389,400,393,400,390,439,417,492,458,458,456,453,453,422,418,438,450,495,491,536,517,537,540,516,494,480,436,516,440,455,434,479,476,755,733,2008,1817,5919,5915,2040,2011,29981,29982,29982,29983,29993,29994,29994,609,29995,29996,29997,29993]} 1. d4 {[%emt 0:00:01]} Nf6 {[%emt 0:00:07]} 2. c4 {[%emt 0:00:09]} e6 {[%emt 0:00:05]} 3. Nc3 {[%emt 0:00:08]} Bb4 {[%emt 0:01:10]} 4. e3 {[%emt 0:00:13]} O-O {[%emt 0:00:12]} 5. Bd3 {[%emt 0:00:02]} d5 {[%emt 0:00:30]} 6. Nf3 {[%emt 0:00:58]} c5 {[%emt 0:01:17]} 7. O-O {[%emt 0:00:19]} cxd4 {[%emt 0:01:01]} 8. exd4 {[%emt 0:00:11]} dxc4 {[%emt 0:00:37]} 9. Bxc4 {[%emt 0:00:12]} Nc6 {[%emt 0:00:25]} 10. a3 {[%emt 0:00:46]} Be7 {[%emt 0:00:08]} 11. Re1 {[%emt 0:00:24]} b6 {[%emt 0:06:54]} 12. Qd3 {[%emt 0:01:33] Recently 12.Ba2 got a lot of attention.} Bb7 {[%emt 0:01:16]} 13. Ba2 {[%emt 0:01:04]} Qd7 {[%emt 0:05:19] E57: Nimzo-Indian: Rubinstein: Main Line: 7...Nc6 8 a3 dxc4 9 Bxc4 cxd4.} 14. Bg5 {[%emt 0:01:01]} Rfd8 {[%emt 0:09:02] [#]} (14... h6 $14 15. Bh4 Rad8) 15. Rad1 $1 $16 {[%emt 0:00:10] [#] Hoping for d5. White is more active.} a6 $146 {[%emt 0:07:15]} (15... Nd5 $16) ({Predecessor:} 15... g6 16. d5 Nxd5 17. Nxd5 Bxg5 18. Nxg5 exd5 19. Bxd5 Qf5 20. Qxf5 gxf5 21. Nxf7 Rxd5 22. Rxd5 Kxf7 23. Rd7+ Kf6 24. Rxb7 {1-0 (26) Rizouk,A (2438)-Pintor,A (2093) Mondariz 2006}) 16. Ne2 $2 {[%emt 0:10:53]} (16. d5) (16. d5 $18) 16... Nd5 {[%emt 0:04:11]} (16... h6 17. Bh4 Nh5) 17. Bb1 {[%emt 0:08:08]} g6 {[%emt 0:01:15]} 18. Bxe7 {[%emt 0:02:32]} Qxe7 {[%emt 0:00:55]} 19. Nc3 {[%emt 0:02:04]} Na5 {[%emt 0:04:01]} 20. Ne4 {[%emt 0:03:30]} Rac8 {[%emt 0:04:31]} 21. Ba2 {[%emt 0:01:51] Inhibits Nc4.} Nf6 {[%emt 0:01:34]} 22. Neg5 {[%emt 0:01:57]} Nd5 {[%emt 0:03:46]} (22... Bxf3 $5 23. Qxf3 Nc4 $11) 23. h4 {[%emt 0:08:13] And now Ne5 would win.} (23. b4 $5 {[%cal Rb4a5]} Nc6 24. Qd2 $11) 23... Nf4 {[%emt 0:12:06]} 24. Qe3 {[%emt 0:08:36]} Qf6 {[%emt 0:03:31]} 25. Ne4 {[%emt 0:08:57]} Qf5 {[%emt 0:09:44]} 26. Nfd2 {[%emt 0:04:52]} (26. d5 $11 Bxd5 27. Qxb6 Nxg2 28. Kxg2 (28. Rxd5 $2 exd5 29. Nf6+ Kg7 $19) 28... Qg4+ 29. Kh2 Qf4+ 30. Kg2 Qg4+ 31. Kh2 Qf4+ 32. Kg2 Qg4+) 26... Nd5 {[%emt 0:05:36]} ({Black should try} 26... Rc2 $17 27. d5 Bxd5) 27. Qh6 {[%emt 0:05:33]} Qh5 {[%emt 0:01:52] White leaves nothing to chance now.} (27... Nf6 $11 28. Nxf6+ Qxf6) 28. Qxh5 {[%emt 0:00:18]} gxh5 {[%emt 0:00:01] [#]} 29. b4 $1 {[%emt 0:00:57]} Nc6 {[%emt 0:02:35]} 30. Bxd5 {[%emt 0:00:41]} exd5 {[%emt 0:00:01]} 31. Nf6+ {[%emt 0:00:06][%cal Be4f6,Bf6h7,Bh7g5,Bg5h3,Bh3f4][%mdl 32]} Kf8 {[%emt 0:03:40]} 32. Nf3 {[%emt 0:00:08]} ({Much less strong is} 32. Nxh7+ Kg7 $16) 32... Rd6 {[%emt 0:03:21]} 33. Nxh7+ {[%emt 0:00:45] Pair of Knights!} Kg8 {[%emt 0:00:19]} (33... Kg7 $16 {was worth a try.}) 34. Nhg5 $18 {[%emt 0:00:04]} b5 {[%emt 0:02:24]} 35. Rc1 {[%emt 0:01:18]} Kg7 {[%emt 0:03:31]} 36. g3 {[%emt 0:00:34]} Rc7 {[%emt 0:00:56]} (36... Nd8 $142 37. Rc5 Rdc6) 37. Kg2 {[%emt 0:00:27]} Rdd7 {[%emt 0:01:32]} 38. Nh3 {[%emt 0:00:32]} a5 {[%emt 0:00:13]} 39. Rb1 {[%emt 0:00:38]} axb4 {[%emt 0:00:42]} 40. axb4 Rd6 {[%emt 0:01:05]} 41. Nf4 {[%emt 0:30:05]} Bc8 {[%emt 0:03:31]} 42. Nxh5+ {[%emt 0:00:00]} Kh6 {[%emt 0:00:11]} 43. Nf4 {[%emt 0:00:00] Threatens to win with Rbc1.} Bf5 {[%emt 0:00:08]} 44. Rbc1 {[%emt 0:00:00] Ne5 is the strong threat.} Ra7 $2 {[%emt 0:00:53] [#]} (44... Be4 45. Re3 Rcd7) 45. Nxd5 $1 {[%emt 0:00:00][%mdl 512]} Be6 {[%emt 0:05:00]} 46. Nf4 {[%emt 0:00:00][%cal Od4d5] aiming for d5!} Bc4 {[%emt 0:00:17] Prevents d5.} 47. Ne5 {[%emt 0:00:00]} Nxe5 {[%emt 0:01:07]} 48. dxe5 {[%emt 0:00:00]} ({Less strong is} 48. Rxe5 Rxd4 49. Rh5+ Kg7 50. Rg5+ Kh7 $18) 48... Rd2 {[%emt 0:00:04]} 49. Red1 {[%emt 0:00:00]} Rb2 {[%emt 0:00:16]} 50. Rd6+ {[%emt 0:00:00]} Kh7 {[%emt 0:00:11]} 51. e6 {[%emt 0:00:00]} fxe6 {[%emt 0:01:40]} 52. Nxe6 {[%emt 0:00:00]} Raa2 {[%emt 0:00:17]} 53. Ng5+ {[%emt 0:00:00]} Kg7 {[%emt 0:00:12]} 54. Nh3 {[%emt 0:00:00]} Rxb4 {[%emt 0:00:32]} 55. Re1 {[%emt 0:00:00]} Re2 {[%emt 0:00:32]} 56. Rxe2 {[%emt 0:00:00]} Bxe2 {[%emt 0:00:03][%mdl 4096] Endgame KRB-KRN} 57. Nf4 {[%emt 0:00:00]} Bc4 {[%emt 0:00:44]} 58. Kf3 {[%emt 0:00:00]} Rb2 {[%emt 0:00:10]} 59. Rd4 {[%emt 0:00:00]} Bf7 {[%emt 0:00:31]} 60. Nd3 {[%emt 0:00:00]} Rb3 {[%emt 0:00:13]} 61. Kf4 {[%emt 0:00:00]} Bc4 {[%emt 0:01:19]} (61... Ra3 $142 62. Rd7 Kh6 63. Rd6+ Kg7) 62. Ne5 {[%emt 0:00:04]} Bg8 {[%emt 0:00:07]} 63. Kg5 {[%emt 0:00:24] White threatens h5 and mate.} Ra3 {[%emt 0:01:41]} 64. Rd7+ {[%emt 0:00:28]} Kf8 {[%emt 0:00:06]} 65. Rd8+ {[%emt 0:00:22]} Kg7 {[%emt 0:00:09]} 66. h5 {[%cal Bh4h5,Bh5h6,Bh6h7][%mdl 32]} Ra6 {[%emt 0:00:21]} 67. h6+ {[%emt 0:00:20]} Kh7 {[%emt 0:00:08]} 68. Rd7+ {[%emt 0:00:09]} Kh8 {[%emt 0:00:26]} 69. Ng6+ {[%emt 0:00:07]} Rxg6+ {[%emt 0:00:07]} 70. Kxg6 {[%emt 0:00:03]} b4 {[%emt 0:00:07]} 71. h7 {[%emt 0:00:25] Weighted Error Value: White=0.21 (precise) /Black=0.37} 1-0